bitfinex/quotes_BTCUSD_20251031
["timestamp","ask_amount","ask_price","bid_price","bid_amount"]
[1761908820336,0.40482762,109870.0,109860.0,0.18472018]
[1761908820549,0.40482762,109870.0,109860.0,0.05728527]
[1761908821606,0.40482762,109870.0,109860.0,0.18472018]
[1761908821820,0.40482762,109870.0,109860.0,0.20292516]
[1761908822037,0.40482762,109870.0,109860.0,0.18472018]
[1761908822695,2.0,109870.0,109860.0,0.05728527]
[1761908822922,2.39462788,109870.0,109860.0,0.05728527]
[1761908823140,0.39462788,109870.0,109860.0,0.05728527]
[1761908823768,0.39462788,109870.0,109860.0,0.18472018]
[1761908825477,0.40386333,109870.0,109860.0,0.18472018]
[1761908825677,0.39448351,109870.0,109860.0,0.18472018]
[1761908827762,2.0,109870.0,109860.0,0.18472018]
[1761908828961,0.00920008,109870.0,109860.0,0.18472018]
[1761908829392,2.0,109870.0,109860.0,0.18472018]
[1761908831966,1.79944672,109870.0,109860.0,0.18472018]
[1761908832172,2.0,109870.0,109860.0,0.18472018]
[1761908834030,2.0,109880.0,109860.0,0.18472018]
[1761908834206,2.34,109880.0,109870.0,0.05115]
[1761908834459,2.73448351,109880.0,109870.0,0.05115]
[1761908836242,2.73448351,109880.0,109870.0,0.05215]
[1761908836650,2.86289523,109880.0,109870.0,0.05715]
[1761908839663,3.10679396,109880.0,109870.0,0.00644348]
[1761908839908,3.17983674,109880.0,109870.0,0.00644348]
[1761908840338,3.57432025,109880.0,109870.0,0.00644348]
[1761908841202,3.57332025,109880.0,109870.0,0.00144348]
[1761908841402,3.57332025,109880.0,109870.0,0.00044348]
[1761908841604,3.57832025,109880.0,109870.0,0.00144348]
[1761908841814,3.58032025,109880.0,109870.0,0.00144348]
[1761908842057,3.68563792,109880.0,109870.0,0.00144348]
[1761908842517,0.16361719,109860.0,109850.0,0.14654325]
[1761908842730,3.13148823,109860.0,109850.0,0.14654325]
[1761908842943,3.20526911,109860.0,109850.0,0.14654325]
[1761908843091,3.22562911,109860.0,109850.0,0.14654325]
[1761908843292,3.25300006,109860.0,109850.0,0.14654325]
[1761908843717,3.25400006,109860.0,109850.0,0.14954325]
[1761908844404,3.23439068,109860.0,109850.0,0.14954325]
[1761908847507,3.57439068,109860.0,109850.0,0.14954325]
[1761908847711,3.59393107,109860.0,109850.0,0.14954325]
[1761908848687,3.59393107,109860.0,109850.0,0.14698684]
[1761908849565,3.98841458,109860.0,109850.0,1e-08]
[1761908849776,2.55780029,109850.0,109840.0,0.0004]
[1761908850021,3.58210572,109850.0,109840.0,0.0004]
[1761908850394,3.58210572,109850.0,109840.0,0.00062184]
[1761908850780,3.60948271,109850.0,109840.0,0.00062184]
[1761908850981,3.60948271,109850.0,109840.0,0.00110525]
[1761908851613,3.61048271,109850.0,109840.0,0.00410525]
[1761908853259,3.61048271,109850.0,109800.0,0.06514276]
[1761908853260,0.34,109810.0,109800.0,0.06514276]
[1761908853466,0.34,109810.0,109800.0,0.07372819]
[1761908853467,1.04272359,109810.0,109800.0,0.07372819]
[1761908853675,0.95179546,109810.0,109800.0,0.08936819]
[1761908854084,0.9791747,109810.0,109800.0,0.08936819]
[1761908854287,0.9791747,109810.0,109800.0,0.08936802]
[1761908854502,0.9811747,109810.0,109800.0,0.09936802]
[1761908854704,0.99045148,109810.0,109800.0,0.09936802]
[1761908854910,1.08027049,109810.0,109800.0,0.09936802]
[1761908855129,0.50614896,109810.0,109800.0,0.09936802]
[1761908855327,0.90063247,109810.0,109800.0,0.09936802]
[1761908855525,0.77313953,109810.0,109800.0,0.09936802]
[1761908856578,0.002,109810.0,109800.0,0.22687257]
[1761908857701,0.61379546,109810.0,109800.0,0.09936802]
[1761908857908,0.641174,109810.0,109800.0,0.09936802]
[1761908859042,0.73099301,109810.0,109800.0,0.10025577]
[1761908860915,0.73099301,109810.0,109800.0,0.21926298]
[1761908860916,0.002,109810.0,109800.0,0.21926298]
[1761908872304,0.39648351,109810.0,109800.0,0.21926298]
[1761908872521,0.002,109810.0,109800.0,0.21926298]
[1761908872943,0.002,109810.0,109800.0,0.09175843]
[1761908872944,0.12949294,109810.0,109800.0,0.09175843]
[1761908873100,0.54967393,109810.0,109800.0,0.10028661]
[1761908873708,0.88967393,109810.0,109800.0,0.10028661]
[1761908880600,0.86397645,109810.0,109800.0,0.10028661]
[1761908883896,0.52197645,109810.0,109800.0,0.10028661]
[1761908885394,0.5224801,109810.0,109800.0,0.10028661]
[1761908885725,0.12749294,109810.0,109800.0,0.10028661]
[1761908885915,0.5224801,109810.0,109800.0,0.10028661]
[1761908886332,0.39498716,109810.0,109800.0,0.10997336]
[1761908886542,0.39498716,109810.0,109800.0,0.09175843]
[1761908887598,0.5224801,109810.0,109800.0,0.09175843]
[1761908887999,0.39498716,109810.0,109800.0,0.09175843]
[1761908888413,0.5224801,109810.0,109800.0,0.09175843]
[1761908888843,0.39498716,109810.0,109800.0,0.10997336]
[1761908889097,0.5224801,109810.0,109800.0,0.09175843]
[1761908890152,0.39498716,109810.0,109800.0,0.09175843]
[1761908890795,0.5224801,109810.0,109800.0,0.09175843]
[1761908894020,0.39498716,109810.0,109800.0,0.09175843]
[1761908894253,0.12748182,109820.0,109800.0,0.10997336]
[1761908894509,0.39498716,109810.0,109800.0,0.06908561]
[1761908895004,0.5224801,109810.0,109800.0,0.08456561]
[1761908895230,0.52246898,109820.0,109800.0,0.22578016]
[1761908895441,0.52446898,109820.0,109810.0,0.05152]
[1761908895868,0.86446898,109820.0,109810.0,0.05152]
[1761908896078,0.86246898,109820.0,109810.0,0.05152]
[1761908896301,1.25745614,109820.0,109810.0,0.05152]
[1761908896520,1.25745614,109820.0,109810.0,0.06973327]
[1761908898103,0.86246898,109820.0,109810.0,0.06973327]
[1761908898793,0.86446898,109820.0,109810.0,0.07873327]
[1761908899231,1.25945614,109820.0,109810.0,0.07873327]
[1761908899689,1.13197432,109820.0,109810.0,0.07873327]
[1761908899899,0.52446849,109820.0,109810.0,0.06052]
[1761908900765,0.52446849,109820.0,109810.0,0.06118575]
[1761908901198,0.91945565,109820.0,109810.0,0.06118575]
[1761908903210,0.12948133,109820.0,109810.0,0.06118575]
[1761908903417,0.52446849,109820.0,109810.0,0.06118575]
[1761908903623,0.91945565,109820.0,109810.0,0.06118575]
[1761908905970,0.12948133,109820.0,109810.0,0.06118575]
[1761908906178,0.91945565,109820.0,109810.0,0.06118575]
[1761908907045,0.12948133,109820.0,109810.0,0.06118575]
[1761908907248,0.91945565,109820.0,109810.0,0.06118575]
[1761908914941,0.12948133,109820.0,109810.0,0.06118575]
[1761908915190,0.91945565,109820.0,109810.0,0.06118575]
[1761908923990,0.91945565,109820.0,109810.0,0.07939902]
[1761908925871,0.91945565,109820.0,109810.0,0.06118575]
[1761908927881,0.91945565,109820.0,109810.0,0.07939902]
[1761908929360,0.91945565,109820.0,109810.0,0.06118575]
[1761908929772,0.91945565,109820.0,109810.0,0.07939902]
[1761908932655,0.91945565,109820.0,109810.0,0.06118575]
[1761908935977,1.74426182,109820.0,109810.0,0.06118575]
[1761908936182,1.74426182,109820.0,109810.0,0.06973805]
[1761908936183,3.76386577,109820.0,109810.0,0.06973805]
[1761908936411,3.76385947,109820.0,109810.0,0.06973805]
[1761908936634,3.78993026,109820.0,109810.0,0.06973805]
[1761908937254,3.81803097,109820.0,109810.0,0.06973805]
[1761908937459,3.90784998,109820.0,109810.0,0.06973805]
[1761908938569,3.92329998,109820.0,109810.0,0.03054805]
[1761908938783,3.97984226,109820.0,109810.0,0.01821805]
[1761908939236,4.00722325,109820.0,109810.0,0.01821805]
[1761908939880,4.00822325,109820.0,109810.0,0.01821805]
[1761908940935,4.00622325,109820.0,109810.0,0.00921805]
[1761908941245,4.00722325,109820.0,109810.0,0.01121805]
[1761908941976,4.0215056,109820.0,109810.0,0.01121805]
[1761908942406,4.0215056,109820.0,109810.0,0.00266575]
[1761908942606,4.0011456,109820.0,109810.0,0.00266575]
[1761908942808,4.0011456,109820.0,109810.0,0.0262529]
[1761908943626,4.0011456,109820.0,109810.0,0.03803123]
[1761908944249,4.0011456,109820.0,109810.0,0.02949575]
[1761908944785,2.81618412,109820.0,109810.0,0.05232575]
[1761908944971,3.95962481,109820.0,109810.0,0.05232575]
[1761908945148,3.9315241,109820.0,109810.0,0.06085974]
[1761908947468,3.12734651,109820.0,109810.0,0.06085974]
[1761908948166,3.14279651,109820.0,109810.0,0.03802974]
[1761908948379,3.52241275,109820.0,109810.0,0.06085974]
[1761908948587,3.12734651,109820.0,109810.0,0.06085974]
[1761908948794,3.14279651,109820.0,109810.0,0.06085736]
[1761908949643,3.17089722,109820.0,109810.0,0.06085736]
[1761908949852,3.17089722,109820.0,109810.0,0.03802736]
[1761908950077,3.58632346,109820.0,109810.0,0.01119736]
[1761908950283,3.58632346,109820.0,109810.0,0.00266575]
[1761908950755,3.56596346,109820.0,109810.0,0.00266575]
[1761908950962,3.58024611,109820.0,109810.0,0.00266575]
[1761908952535,3.60060611,109820.0,109810.0,0.00266575]
[1761908956786,3.59453333,109820.0,109810.0,0.01841575]
[1761908956986,3.60060611,109820.0,109810.0,0.00266575]
[1761908957193,3.6266769,109820.0,109810.0,0.00266575]
[1761908957608,3.6063169,109820.0,109810.0,0.01841575]
[1761908957818,3.58024611,109820.0,109810.0,0.01841575]
[1761908958231,3.60060611,109820.0,109810.0,0.00266575]
[1761908958865,3.58024611,109820.0,109810.0,0.00266575]
[1761908959079,3.58024611,109820.0,109810.0,0.01840575]
[1761908959658,3.58024611,109820.0,109810.0,0.03033575]
[1761908959838,2.77466363,109820.0,109810.0,0.05402575]
[1761908960042,3.16972987,109820.0,109810.0,0.05402575]
[1761908960942,3.15544722,109820.0,109810.0,0.05402575]
[1761908961342,3.15544722,109820.0,109810.0,0.06256176]
[1761908962382,3.15541852,109820.0,109810.0,0.06256176]
[1761908964116,3.16970072,109820.0,109810.0,0.06256176]
[1761908965638,3.01559872,109820.0,109810.0,0.06256176]
[1761908966078,2.67559872,109820.0,109810.0,0.06256176]
[1761908966293,0.62864878,109820.0,109810.0,0.05402575]
[1761908966512,0.95436658,109820.0,109810.0,0.05402575]
[1761908967434,0.95336658,109820.0,109810.0,0.05202575]
[1761908967664,0.95436658,109820.0,109810.0,0.05602575]
[1761908968450,0.95336658,109820.0,109810.0,0.05602575]
[1761908968678,0.43081901,109820.0,109810.0,0.18351869]
[1761908968883,0.82588525,109820.0,109810.0,0.18351869]
[1761908969112,0.341,109820.0,109810.0,0.18351869]
[1761908969316,0.73606624,109820.0,109810.0,0.18351869]
[1761908969744,0.341,109820.0,109810.0,0.18351869]
[1761908969961,0.73606624,109820.0,109810.0,0.18351869]
[1761908970167,0.39606624,109820.0,109810.0,0.18351869]
[1761908971648,0.52354757,109820.0,109810.0,0.05602575]
[1761908971847,0.39606624,109820.0,109810.0,0.18351869]
[1761908972263,0.001,109820.0,109810.0,0.18351869]
[1761908974091,0.52253731,109830.0,109810.0,0.17951869]
[1761908974293,0.61235632,109830.0,109820.0,0.02767]
[1761908974422,0.61235632,109830.0,109820.0,0.0518038]
[1761908975356,0.61335632,109830.0,109820.0,0.0518038]
[1761908976139,0.61235632,109830.0,109820.0,0.0518038]
[1761908977846,0.61335632,109830.0,109820.0,0.0538038]
[1761908982753,0.52353731,109830.0,109820.0,0.0538038]
[1761908982956,0.001,109830.0,109820.0,0.19949674]
[1761908984679,0.39506624,109840.0,109830.0,0.12746972]
[1761908984878,0.39506624,109840.0,109830.0,0.17924972]
[1761908985079,0.52252436,109840.0,109830.0,0.17924972]
[1761908985953,0.52352436,109840.0,109830.0,0.18324972]
[1761908986144,0.39606624,109840.0,109830.0,0.18324972]
[1761908987750,0.001,109840.0,109830.0,0.18324972]
[1761908990079,0.001,109840.0,109830.0,0.18347161]
[1761908998569,0.001,109840.0,109830.0,0.21083911]
[1761909009810,0.001,109840.0,109830.0,0.69532773]
[1761909011261,0.13656829,109870.0,109850.0,0.15466651]
[1761909011468,0.39466961,109860.0,109850.0,0.13890651]
[1761909011870,0.39466961,109860.0,109850.0,0.15466651]
[1761909012077,0.25375061,109870.0,109850.0,0.15466651]
[1761909012281,0.52210452,109860.0,109850.0,0.01146]
[1761909012710,0.52210452,109860.0,109850.0,0.02722]
[1761909012914,0.52210452,109860.0,109850.0,0.05178]
[1761909013100,0.52310452,109860.0,109850.0,0.05378]
[1761909013440,0.52310452,109860.0,109850.0,0.05478]
[1761909013864,0.52310452,109860.0,109850.0,0.18222651]
[1761909013865,0.39566961,109860.0,109850.0,0.18222651]
[1761909014104,0.52310452,109860.0,109850.0,0.18222651]
[1761909015861,0.39566961,109860.0,109850.0,0.18222651]
[1761909018113,0.001,109860.0,109850.0,0.18222651]
[1761909018321,0.39566961,109860.0,109850.0,0.18222651]
[1761909018522,0.52310452,109860.0,109850.0,0.18222651]
[1761909019555,0.39566961,109860.0,109850.0,0.18222651]
[1761909019748,0.001,109860.0,109850.0,0.18222651]
[1761909020098,0.39566961,109860.0,109850.0,0.18222651]
[1761909020513,0.001,109860.0,109850.0,0.18222651]
[1761909020940,0.39566961,109860.0,109850.0,0.18222651]
[1761909022823,0.52310452,109860.0,109850.0,0.18222651]
[1761909024707,0.12843491,109860.0,109850.0,0.18222651]
[1761909024919,0.001,109860.0,109850.0,0.18222651]
[1761909025325,0.39566961,109860.0,109850.0,0.18222651]
[1761909025856,0.001,109860.0,109850.0,0.18222651]
[1761909026069,0.52310452,109860.0,109850.0,0.18222651]
[1761909026275,0.001,109860.0,109850.0,0.18222651]
[1761909026481,0.39566961,109860.0,109850.0,0.18222651]
[1761909027790,0.39524918,109860.0,109850.0,0.18222651]
[1761909028713,0.52268409,109860.0,109850.0,0.18222651]
[1761909029035,0.39524918,109860.0,109850.0,0.18222651]
[1761909029347,0.52268409,109860.0,109850.0,0.18222651]
[1761909029548,0.39524918,109860.0,109850.0,0.18222651]
[1761909030057,0.52268409,109860.0,109850.0,0.18222651]
[1761909030248,0.00057957,109860.0,109850.0,0.18222651]
[1761909030411,0.39524918,109860.0,109850.0,0.18222651]
[1761909031274,0.12801448,109860.0,109850.0,0.18222651]
[1761909031415,0.52268409,109860.0,109850.0,0.18222651]
[1761909033873,0.9173537,109860.0,109850.0,0.05478]
[1761909038264,0.52268409,109860.0,109850.0,0.05478]
[1761909038667,0.52268409,109860.0,109850.0,0.18222651]
[1761909038890,0.52268409,109860.0,109850.0,0.05478]
[1761909040893,0.9173537,109860.0,109850.0,0.05478]
[1761909041299,0.52268409,109860.0,109850.0,0.05478]
[1761909042154,0.12801448,109860.0,109850.0,0.05478]
[1761909042359,0.52268409,109860.0,109850.0,0.05478]
[1761909050919,0.12801448,109860.0,109850.0,0.05478]
[1761909051143,0.52268409,109860.0,109850.0,0.05478]
[1761909051345,0.32886466,109860.0,109850.0,0.05478]
[1761909051618,0.45629957,109860.0,109850.0,0.05478]
[1761909061616,0.85096918,109860.0,109850.0,0.05478]
[1761909062454,0.94078819,109860.0,109850.0,0.05478]
[1761909063234,0.96815359,109860.0,109850.0,0.05478]
[1761909063434,0.76965861,109860.0,109850.0,0.05478]
[1761909063825,0.24461932,109860.0,109850.0,0.05478]
[1761909064038,0.24461932,109860.0,109820.0,0.68055609]
[1761909064039,0.12745812,109840.0,109820.0,0.68055609]
[1761909064242,0.12745812,109840.0,109830.0,0.01820996]
[1761909065466,0.12745812,109840.0,109830.0,0.02020996]
[1761909065678,0.46357726,109850.0,109830.0,0.02020996]
[1761909065921,0.12745812,109840.0,109830.0,0.02020996]
[1761909066119,0.12745812,109840.0,109830.0,0.002]
[1761909066891,0.12845812,109840.0,109830.0,0.002]
[1761909067964,0.12745812,109840.0,109830.0,0.002]
[1761909068274,0.12845812,109840.0,109830.0,0.008]
[1761909068757,0.12845812,109840.0,109830.0,0.15367968]
[1761909069658,0.001,109840.0,109830.0,0.15367968]
[1761909069839,0.12845812,109840.0,109830.0,0.15367968]
[1761909069980,0.12845812,109840.0,109830.0,0.13546972]
[1761909070384,0.12845812,109840.0,109830.0,0.008]
[1761909071989,0.12845812,109840.0,109830.0,0.13546972]
[1761909072204,0.12845812,109840.0,109830.0,0.15367968]
[1761909072902,0.001,109840.0,109830.0,0.15367968]
[1761909073092,0.001,109840.0,109830.0,0.54833834]
[1761909075498,0.12845812,109840.0,109830.0,0.53012838]
[1761909077062,0.001,109840.0,109830.0,0.53012838]
[1761909077998,0.12845812,109840.0,109830.0,0.53012838]
[1761909078203,0.001,109840.0,109830.0,0.53012838]
[1761909085683,0.07627358,109850.0,109830.0,0.53012838]
[1761909086570,0.07627358,109850.0,109830.0,0.52412838]
[1761909086795,0.07627358,109850.0,109830.0,0.52212838]
[1761909087021,0.07727358,109850.0,109830.0,0.52712838]
[1761909088345,0.15581244,109850.0,109840.0,0.12745812]
[1761909088582,0.15581244,109850.0,109840.0,0.0182083]
[1761909089446,0.12745812,109840.0,109830.0,0.005]
[1761909089964,0.12745812,109840.0,109820.0,0.62106415]
[1761909091371,0.12845812,109840.0,109830.0,0.01820996]
[1761909093107,0.12745812,109840.0,109830.0,0.01820996]
[1761909093682,0.12845812,109840.0,109830.0,0.02520996]
[1761909093903,0.12745812,109840.0,109830.0,0.02520996]
[1761909094070,0.12745812,109840.0,109830.0,0.15267968]
[1761909095286,0.12745812,109840.0,109830.0,0.02520996]
[1761909096282,0.12745812,109840.0,109830.0,0.15267968]
[1761909096520,0.12745812,109840.0,109830.0,0.02520996]
[1761909096743,0.12745812,109840.0,109830.0,0.15267968]
[1761909099266,0.12745812,109840.0,109830.0,0.02520996]
[1761909100890,0.12745812,109840.0,109830.0,0.15267968]
[1761909102279,0.12745812,109840.0,109830.0,0.02520996]
[1761909102468,0.12745812,109840.0,109830.0,0.15267968]
[1761909102584,0.11585958,109850.0,109830.0,0.15267968]
[1761909102791,0.12745812,109840.0,109830.0,0.15267968]
[1761909103505,0.12745812,109840.0,109830.0,0.14567968]
[1761909103977,0.12745812,109840.0,109830.0,0.15067968]
[1761909104441,0.12745812,109840.0,109830.0,0.14567968]
[1761909104860,0.12845812,109840.0,109830.0,0.15367968]
[1761909105462,0.12845812,109840.0,109830.0,0.02620996]
[1761909106189,0.12845812,109840.0,109830.0,0.15367968]
[1761909108151,0.12845812,109840.0,109830.0,0.02620996]
[1761909108587,0.12845812,109840.0,109830.0,0.15367968]
[1761909108825,0.12845812,109840.0,109830.0,0.02620996]
[1761909109029,0.12745812,109840.0,109830.0,0.02620996]
[1761909109414,0.12745812,109840.0,109830.0,0.15367968]
[1761909112050,0.02736508,109850.0,109830.0,0.54833834]
[1761909112259,0.15481209,109850.0,109830.0,0.53012838]
[1761909112460,0.15481209,109850.0,109840.0,0.0182083]
[1761909113807,0.15581209,109850.0,109840.0,0.0182083]
[1761909114206,0.15481209,109850.0,109840.0,0.0182083]
[1761909114688,0.15581209,109850.0,109840.0,0.0242083]
[1761909114925,0.15581209,109850.0,109840.0,0.15166642]
[1761909115826,0.15581209,109850.0,109840.0,0.13345812]
[1761909116407,0.15581209,109850.0,109840.0,0.006]
[1761909117765,0.15581209,109850.0,109840.0,0.13345812]
[1761909117967,0.02836508,109850.0,109840.0,0.13345812]
[1761909120000,0.15581159,109850.0,109840.0,0.13345812]
[1761909120599,0.15581159,109850.0,109840.0,0.006]
[1761909122777,0.97787912,109850.0,109840.0,0.006]
[1761909122982,3.06769813,109850.0,109840.0,0.006]
[1761909123196,3.08733541,109850.0,109840.0,0.006]
[1761909123916,0.12747798,109830.0,109810.0,0.13659681]
[1761909124531,0.15484813,109830.0,109820.0,0.0002219]
[1761909124938,0.12747798,109830.0,109820.0,0.0002219]
[1761909125146,0.90771691,109830.0,109820.0,0.00030982]
[1761909125366,0.88950684,109830.0,109820.0,0.00030982]
[1761909126354,0.49584818,109830.0,109820.0,0.00630982]
[1761909126772,0.90676684,109830.0,109820.0,0.00630982]
[1761909128135,1.00830585,109830.0,109820.0,0.00630982]
[1761909128336,3.12259486,109830.0,109820.0,0.00630982]
[1761909129182,3.5534358,109830.0,109820.0,0.00630982]
[1761909129393,3.60838835,109830.0,109820.0,0.00630982]
[1761909129610,3.62796956,109830.0,109820.0,0.00630982]
[1761909130262,3.62696956,109830.0,109820.0,0.00030982]
[1761909130466,3.69793459,109830.0,109820.0,0.00130982]
[1761909131085,3.69893459,109830.0,109820.0,0.00130982]
[1761909131292,3.69793459,109830.0,109820.0,0.00130982]
[1761909131733,3.56446358,109830.0,109820.0,0.00030982]
[1761909131940,3.53336518,109830.0,109820.0,0.00030982]
[1761909132151,3.53336518,109830.0,109820.0,0.00130982]
[1761909132152,3.53736518,109830.0,109820.0,0.00130982]
[1761909133187,3.56546358,109830.0,109820.0,0.00130982]
[1761909137918,3.59153437,109830.0,109820.0,0.00130982]
[1761909138125,3.68135338,109830.0,109820.0,0.00130982]
[1761909141100,3.62620375,109830.0,109820.0,0.00130982]
[1761909141332,3.65305118,109830.0,109820.0,0.00130982]
[1761909143352,4.04810152,109830.0,109820.0,0.00130982]
[1761909144616,3.25759362,109810.0,109800.0,0.02948276]
[1761909144740,3.37457263,109810.0,109800.0,0.03813472]
[1761909144947,3.00445229,109810.0,109800.0,0.03813472]
[1761909145144,3.00445229,109810.0,109800.0,0.03857863]
[1761909145389,3.0318324,109810.0,109800.0,0.03857863]
[1761909145596,3.0318324,109810.0,109800.0,0.0300716]
[1761909145784,3.0328324,109810.0,109800.0,0.0330716]
[1761909147223,3.51770175,109810.0,109800.0,0.0330716]
[1761909154260,3.33472545,109810.0,109800.0,0.0330716]
[1761909154416,3.46221839,109810.0,109800.0,0.0330716]
[1761909156501,3.37239938,109810.0,109800.0,0.0330716]
[1761909158133,3.40049778,109810.0,109800.0,0.0330716]
[1761909159214,3.43668006,109810.0,109800.0,0.0330716]
[1761909159416,3.48235627,109810.0,109800.0,0.0330716]
[1761909164377,3.57217029,109810.0,109800.0,0.0330716]
[1761909166544,2.78206961,109810.0,109800.0,0.0330716]
[1761909166775,3.5460995,109810.0,109800.0,0.0330716]
[1761909174128,3.00820175,109810.0,109800.0,0.0330716]
[1761909174860,0.54980913,109810.0,109800.0,0.0330716]
[1761909175086,0.92525904,109810.0,109800.0,0.0330716]
[1761909176695,0.94135904,109810.0,109800.0,0.0330716]
[1761909176901,0.97695904,109810.0,109800.0,0.0330716]
[1761909177264,3.48143481,109810.0,109800.0,0.0330716]
[1761909179823,2.99656546,109810.0,109800.0,0.0330716]
[1761909180031,2.97308546,109810.0,109800.0,0.0330716]
[1761909180440,3.3916158,109810.0,109800.0,0.0330716]
[1761909183349,3.4058995,109810.0,109800.0,0.0330716]
[1761909187487,3.42292469,109810.0,109800.0,0.0330716]
[1761909189212,3.00439435,109810.0,109800.0,0.0330716]
[1761909189393,0.95914916,109810.0,109800.0,0.0330716]
[1761909191094,0.94486546,109810.0,109800.0,0.0330716]
[1761909191321,0.92525904,109810.0,109800.0,0.0330716]
[1761909191454,0.5302087,109810.0,109800.0,0.0330716]
[1761909191644,0.50282859,109810.0,109800.0,0.0330716]
[1761909192410,0.89777588,109810.0,109800.0,0.0330716]
[1761909192968,0.50282859,109810.0,109800.0,0.0330716]
[1761909193178,0.89777588,109810.0,109800.0,0.0330716]
[1761909194163,0.21831195,109810.0,109800.0,0.0330716]
[1761909194588,0.61325924,109810.0,109800.0,0.0330716]
[1761909198086,0.62945924,109810.0,109800.0,0.0330716]
[1761909198286,0.64171924,109810.0,109800.0,0.0330716]
[1761909205539,0.72206527,109810.0,109800.0,0.0330716]
[1761909210871,0.74613527,109810.0,109800.0,0.0330716]
[1761909213659,0.72206527,109810.0,109800.0,0.0330716]
[1761909214457,0.62551924,109810.0,109800.0,0.0330716]
[1761909214667,0.61325924,109810.0,109800.0,0.0330716]
[1761909225908,0.63030188,109810.0,109800.0,0.0330716]
[1761909226173,0.68327188,109810.0,109800.0,0.0330716]
[1761909227161,0.6780155,109810.0,109800.0,0.0330716]
[1761909227376,0.75971615,109810.0,109800.0,0.0330716]
[1761909228491,0.78460615,109810.0,109800.0,0.0330716]
[1761909229939,0.75971615,109810.0,109800.0,0.0330716]
[1761909230377,0.78460615,109810.0,109800.0,0.0330716]
[1761909234616,0.78460615,109810.0,109800.0,0.0330716]
[1761909235027,1.12460615,109810.0,109800.0,0.0330716]
[1761909235245,1.02194432,109810.0,109800.0,0.0330716]
[1761909235449,1.03849298,109810.0,109800.0,0.0330716]
[1761909236087,1.05812085,109810.0,109800.0,0.0330716]
[1761909238301,3.05812085,109810.0,109800.0,0.0330716]
[1761909238762,3.07240463,109810.0,109800.0,0.0330716]
[1761909241836,2.96581398,109810.0,109800.0,0.0330716]
[1761909242763,2.99070398,109810.0,109800.0,0.0330716]
[1761909243203,2.59575669,109810.0,109800.0,0.0330716]
[1761909243453,2.99070398,109810.0,109800.0,0.0330716]
[1761909244779,2.59575669,109810.0,109800.0,0.0330716]
[1761909244991,3.08052299,109810.0,109800.0,0.0330716]
[1761909247964,2.99070398,109810.0,109800.0,0.0330716]
[1761909251348,3.38591465,109810.0,109800.0,0.0330716]
[1761909253488,3.37163087,109810.0,109800.0,0.0330716]
[1761909256813,3.38591465,109810.0,109800.0,0.0330716]
[1761909260914,3.41401305,109810.0,109800.0,0.0330716]
[1761909261113,3.50383206,109810.0,109800.0,0.0330716]
[1761909262324,3.52990285,109810.0,109800.0,0.0330716]
[1761909262523,3.92498183,109810.0,109800.0,0.0330716]
[1761909263379,3.52990285,109810.0,109800.0,0.0330716]
[1761909263751,3.51286205,109810.0,109800.0,0.0330716]
[1761909263913,3.52988995,109810.0,109800.0,0.0330716]
[1761909266875,3.51560617,109810.0,109800.0,0.0330716]
[1761909270833,0.12750455,109800.0,109790.0,0.0004]
[1761909271043,3.63351667,109800.0,109790.0,0.00044819]
[1761909271259,3.63493447,109800.0,109790.0,0.00044819]
[1761909272151,3.70425277,109800.0,109790.0,0.00544819]
[1761909272355,3.70425277,109800.0,109780.0,0.0004]
[1761909272356,2.50369844,109790.0,109780.0,0.0004]
[1761909272529,3.47206118,109790.0,109780.0,0.00048804]
[1761909272732,3.56188019,109790.0,109780.0,0.00048804]
[1761909273541,3.56588019,109790.0,109780.0,0.00148804]
[1761909273925,3.56788019,109790.0,109780.0,0.00148804]
[1761909275952,4.01712836,109790.0,109780.0,0.00148804]
[1761909276556,4.04451847,109790.0,109780.0,0.00148804]
[1761909276976,4.04451847,109790.0,109780.0,0.00193206]
[1761909281628,4.05880859,109790.0,109780.0,0.00193206]
[1761909281860,4.04451847,109790.0,109780.0,0.00193206]
[1761909282483,3.84050417,109790.0,109780.0,0.00193206]
[1761909282695,3.96802033,109790.0,109780.0,0.00193206]
[1761909283364,3.57294135,109790.0,109780.0,0.00193206]
[1761909283933,3.96802033,109790.0,109780.0,0.00193206]
[1761909284678,4.00420261,109790.0,109780.0,0.00193206]
[1761909295589,4.01849273,109790.0,109780.0,0.00193206]
[1761909295800,4.00420261,109790.0,109780.0,0.00193206]
[1761909297099,0.91770898,109760.0,109750.0,0.0016]
[1761909297314,1.124847,109760.0,109750.0,0.01028382]
[1761909298376,1.125847,109760.0,109750.0,0.01328382]
[1761909298583,1.150037,109760.0,109750.0,0.01328382]
[1761909298786,1.125847,109760.0,109750.0,0.01328382]
[1761909299002,1.125847,109760.0,109750.0,0.00938382]
[1761909299859,1.113597,109760.0,109750.0,0.00938382]
[1761909300074,1.12351793,109760.0,109750.0,0.00938382]
[1761909301020,1.10826793,109760.0,109750.0,0.00938382]
[1761909301879,1.12351793,109760.0,109750.0,0.00938382]
[1761909302331,1.13576793,109760.0,109750.0,0.00314508]
[1761909302958,1.13576793,109760.0,109750.0,0.00381136]
[1761909303895,0.34560997,109760.0,109750.0,0.00381136]
[1761909304117,0.12855102,109760.0,109750.0,0.00381136]
[1761909304357,0.54184007,109760.0,109750.0,0.00381136]
[1761909304570,0.52363,109760.0,109750.0,0.00381136]
[1761909304779,0.12855102,109760.0,109750.0,0.00381136]
[1761909304992,0.14676109,109760.0,109750.0,0.00381136]
[1761909305202,0.52363,109760.0,109750.0,0.00381136]
[1761909305412,0.52363,109760.0,109750.0,0.131374]
[1761909306057,0.12855102,109760.0,109750.0,0.131374]
[1761909306268,0.52363,109760.0,109750.0,0.131374]
[1761909306481,0.52363,109760.0,109750.0,0.00381136]
[1761909307304,0.52363,109760.0,109750.0,0.131374]
[1761909308518,0.52363,109760.0,109750.0,0.00381136]
[1761909310025,0.91870898,109760.0,109750.0,0.00381136]
[1761909310265,0.15605102,109760.0,109750.0,0.00381136]
[1761909310463,0.93691905,109760.0,109750.0,0.00381136]
[1761909310601,0.91870898,109760.0,109750.0,0.00381136]
[1761909311371,1.00852799,109760.0,109750.0,0.00381136]
[1761909313416,0.61373201,109760.0,109750.0,0.00381136]
[1761909313782,0.62898201,109760.0,109750.0,0.00381136]
[1761909314195,0.61373201,109760.0,109750.0,0.00381136]
[1761909314606,0.71967102,109760.0,109750.0,0.00381136]
[1761909314811,0.73128102,109760.0,109750.0,0.00381136]
[1761909315227,0.75470102,109760.0,109750.0,0.00381136]
[1761909315855,0.73128102,109760.0,109750.0,0.00381136]
[1761909317414,0.71516102,109760.0,109750.0,0.00381136]
[1761909317622,0.73158102,109760.0,109750.0,0.00381136]
[1761909319704,0.70355102,109760.0,109750.0,0.00381136]
[1761909320421,0.523913,109760.0,109750.0,0.00381136]
[1761909321360,0.001,109760.0,109750.0,0.52673598]
[1761909321801,0.001,109760.0,109750.0,0.55412254]
[1761909322476,0.001,109760.0,109750.0,0.64394155]
[1761909323525,0.001,109760.0,109750.0,0.64094155]